[Event "Polish University-ch Teams 2024"]
[Site "Lublin"]
[Date "2024.02.25"]
[Round "6.2"]
[White "Kowalski, Igor"]
[Black "Panek, Bartosz"]
[Result "1/2-1/2"]
[ECO "E01"]
[WhiteElo "2372"]
[BlackElo "2207"]
[Annotator "TA"]
[PlyCount "144"]
[EventDate "2024.02.22"]
[EventType "team-tourn"]
[EventCountry "POL"]
[SourceTitle "playchess.com"]
[Source "ChessBase"]
[SourceQuality "1"]
[TimeControl "900+5"]

{[%evp 9,144,27,48,38,51,35,29,24,28,0,0,0,0,0,0,0,0,0,13,16,33,27,23,32,22,26,47,42,41,36,62,61,76,69,85,44,50,42,42,40,58,42,52,50,98,7,7,11,38,40,111,101,104,54,50,10,20,2,1,-58,-51,-51,-51,-51,-52,-56,-52,-66,-59,-80,-80,-80,-80,-80,-80,-80,-80,-80,-80,-80,-80,-80,-80,-80,-80,-80,-80,-80,-87,-87,-87,-87,-87,-87,-80,-80,0,-87,-80,-80,0,-87,-87,-87,-80,-80,-80,-80,-8,-52,-52,-52,-8,-8,-8,-8,-8,-8,-8,-8,-8,-8,-8,-8,-8,-8,-8,-8,-8,-8,-8,-8,0,0,0,0,0]} 1. d4 {[%emt 0:00:19]} Nf6 {[%emt 0:03:12]} 2. c4 {[%emt 0:00:02]} e6 {[%emt 0:00:01]} 3. Nf3 {[%emt 0:00:02]} d5 {[%emt 0:00:04]} 4. g3 {[%emt 0:00:04]} c5 {[%emt 0:00:01]} 5. cxd5 {[%emt 0:00:04]} cxd4 {[%emt 0:00:08]} 6. dxe6 {[%emt 0:00:25]} Bxe6 {[%emt 0:00:54]} 7. Qxd4 {[%emt 0:00:04]} Nc6 {[%emt 0:00:03]} 8. Qa4 {[%emt 0:02:37] White has an edge.} a6 {[%emt 0:00:16]} 9. Bd2 {[%emt 0:00:32]} b5 {[%emt 0:00:22]} 10. Qd1 {[%emt 0:00:02]} Rc8 {[%emt 0:00:37]} 11. Bg2 {[%emt 0:00:06]} Bc5 {[%emt 0:00:16]} 12. O-O {[%emt 0:00:10]} O-O {[%emt 0:00:02]} 13. Nc3 {[%emt 0:00:29]} Qe7 {[%emt 0:00:40]} 14. Bg5 {[%emt 0:00:50]} Rfd8 {[%emt 0:00:21]} 15. Qe1 {[%emt 0:01:00]} Nd4 {[%emt 0:00:51]} 16. Rc1 {[%emt 0:01:28] Prevents Nc2.} Nxf3+ {[%emt 0:00:44]} 17. Bxf3 {[%emt 0:00:01]} h6 {[%emt 0:00:02]} 18. Bxf6 {[%emt 0:00:04]} Qxf6 {[%emt 0:00:11]} 19. Ne4 {[%emt 0:00:01][%csl LRc5,LRf6]} Qe7 {[%emt 0:00:01]} 20. Nxc5 {[%emt 0:01:49]} Rxc5 {[%emt 0:00:02]} 21. Qb4 {[%emt 0:00:18]} Rdc8 {[%emt 0:00:17]} 22. Rxc5 {[%emt 0:01:23]} Qxc5 {[%emt 0:00:23]} 23. Qxc5 {[%emt 0:00:33]} Rxc5 $16 {[%emt 0:00:02][%mdl 4096] Endgame. KRB-KRB} 24. b3 {[%emt 0:02:06]} Rc2 {[%emt 0:00:36]} 25. Ra1 {[%emt 0:00:03]} a5 {[%emt 0:00:20]} 26. Kf1 {[%emt 0:00:04]} a4 {[%emt 0:01:11]} (26... f5 $14) 27. bxa4 {[%emt 0:00:04]} (27. Be4 $16 Rc5 28. Rd1) 27... bxa4 $11 {[%emt 0:00:01]} 28. a3 {[%emt 0:00:02]} Bb3 {[%emt 0:00:11]} 29. Be4 {[%emt 0:00:24]} Rc5 {[%emt 0:00:06]} ({Better is} 29... Rb2 $14) 30. Bd3 {[%emt 0:00:05]} g6 {[%emt 0:00:03][%cal Bg7g6,Bg6g5][%mdl 32]} 31. Ke1 {[%emt 0:00:06]} (31. h4 $16) 31... Rh5 $1 $14 {[%emt 0:00:08]} 32. h4 {[%emt 0:01:00] next Rc1 is good for White.} g5 $1 {[%emt 0:00:02]} 33. Be4 {[%emt 0:00:08] aiming for Bf3.} gxh4 {[%emt 0:00:12]} 34. Bf3 {[%emt 0:00:00]} (34. Rc1 $11) 34... Rg5 $15 {[%emt 0:00:07]} 35. Rc1 {[%emt 0:00:16]} hxg3 {[%emt 0:00:06]} 36. fxg3 {[%emt 0:00:01]} Rxg3 {[%emt 0:00:01]} 37. Kf2 {[%emt 0:00:24] Repels Rg1} Rg5 {[%emt 0:00:01]} 38. Rc8+ {[%emt 0:00:09]} Kg7 {[%emt 0:05:40]} 39. Ra8 {[%emt 0:00:04]} Rc5 {[%emt 0:00:00]} 40. Ra6 {[%emt 0:00:18]} Rc2 {[%emt 0:00:00] [#] ...Ra2 would now be deadly.} 41. Bc6 {[%emt 0:00:24]} Ra2 {[%emt 0:00:00]} 42. Bxa4 {[%emt 0:00:14]} Rxa3 {[%emt 0:00:00]} 43. Bb5 {[%emt 0:00:00]} Rxa6 {[%emt 0:00:00]} 44. Bxa6 $17 {[%emt 0:00:02] KB-KB} Kg6 {[%emt 0:00:00]} 45. Kg3 {[%emt 0:00:11]} Kg5 {[%emt 0:00:00]} 46. e3 {[%emt 0:00:03]} Bd5 {[%emt 0:00:40]} 47. Be2 h5 {[%emt 0:00:00]} 48. Bd1 {[%emt 0:00:15]} h4+ {[%emt 0:00:00]} 49. Kh2 {[%emt 0:00:01]} Be6 {[%emt 0:00:00]} 50. Be2 {[%emt 0:00:28]} Bg4 {[%emt 0:00:00]} 51. Bd3 {[%emt 0:00:00]} Bf3 {[%emt 0:00:00]} 52. Kh3 {[%emt 0:00:00]} Bg4+ {[%emt 0:00:00]} 53. Kh2 $1 {[%emt 0:00:00]} Bf5 {[%emt 0:00:00]} 54. Be2 {[%emt 0:00:00]} Bg4 {[%emt 0:00:00]} 55. Bd3 {[%emt 0:00:00]} Kf6 {[%emt 0:00:00]} 56. Bc4 {[%emt 0:00:00]} Kg6 {[%emt 0:00:00]} 57. Bd3+ {[%emt 0:00:02]} Kg5 {[%emt 0:00:00]} 58. Bc4 {[%emt 0:00:01]} f5 {[%emt 0:00:00]} (58... Kf6 $17) 59. Kg2 {[%emt 0:00:07]} Kf6 {[%emt 0:00:00]} 60. Ba6 {[%emt 0:00:10]} Ke5 {[%emt 0:00:00]} 61. Bb7 {[%emt 0:00:02] The position is equal.} Kd6 {[%emt 0:01:15]} 62. Bc8 {[%emt 0:00:22]} Kd5 {[%emt 0:00:00]} 63. Kf2 {[%emt 0:00:06]} Ke4 {[%emt 0:00:00]} 64. Bb7+ {[%emt 0:00:02]} Kd3 {[%emt 0:00:00]} 65. Ba6+ {[%emt 0:00:03]} Kd2 {[%emt 0:00:00]} 66. Bc8 {[%emt 0:00:04]} h3 {[%emt 0:00:00]} 67. e4 {[%emt 0:00:07]} h2 {[%emt 0:00:23]} 68. Kg2 {[%emt 0:00:01]} Bf3+ {[%emt 0:00:01]} 69. Kxh2 $1 {[%emt 0:00:02]} fxe4 {[%emt 0:00:01] [#] ( -> ...e3)} 70. Bb7 $1 {[%emt 0:00:00]} e3 {[%emt 0:00:08]} 71. Bxf3 {[%emt 0:00:02]} e2 {[%emt 0:00:17]} 72. Bxe2 $1 Kxe2 {[%emt 0:00:00] Weighted Error Value: White=0.10 (very precise) /Black=0.12 (very precise) .  Mistake:       	White=3     	Black=3      Inaccurate:     	White=4     	Black=3      OK:         	White=28    	Black=23     Best:        	White=6     	Black=5      Strong:       	White=4     	Black=2} 1/2-1/2

[Event "Polish University-ch Teams 2024"]
[Site "Lublin"]
[Date "2024.02.25"]
[Round "6.3"]
[White "Choina, Adam"]
[Black "Molenda, Marcin"]
[Result "1/2-1/2"]
[ECO "B33"]
[WhiteElo "1900"]
[BlackElo "2377"]
[Annotator "TA"]
[PlyCount "70"]
[EventDate "2024.02.22"]
[EventType "team-tourn"]
[EventCountry "POL"]
[SourceTitle "playchess.com"]
[Source "ChessBase"]
[SourceQuality "1"]
[TimeControl "900+5"]

{[%evp 31,70,36,177,179,182,174,171,150,162,119,225,160,170,181,181,172,183,183,214,198,217,209,220,210,243,243,224,203,188,29,31,65,195,187,393,0,0,0,0,0,6]} 1. e4 {[%emt 0:00:02]} c5 {[%emt 0:01:02]} 2. Nf3 {[%emt 0:00:03][%cal Bg1f3,Bf3d4,Bd4b5,Bb5a3,Ba3c2,Bc2e3][%mdl 32]} Nc6 {[%emt 0:00:02]} 3. d4 {[%emt 0:00:01]} cxd4 {[%emt 0:00:01]} 4. Nxd4 {[%emt 0:00:01]} Nf6 {[%emt 0:00:01]} 5. Nc3 {[%emt 0:00:02]} e5 {[%emt 0:00:01]} 6. Ndb5 {[%emt 0:00:02]} d6 {[%emt 0:00:01]} 7. Bg5 {[%emt 0:00:04]} a6 {[%emt 0:00:01]} 8. Na3 {[%emt 0:00:03]} b5 {[%emt 0:00:01]} 9. Bxf6 {[%emt 0:00:13]} gxf6 {[%emt 0:00:01]} 10. Nd5 {[%emt 0:00:03]} f5 {[%emt 0:00:06]} 11. exf5 {[%emt 0:00:05]} Bxf5 {[%emt 0:00:08]} 12. c3 {[%emt 0:00:01]} Bg7 {[%emt 0:00:16]} 13. Nc2 {[%emt 0:00:03]} O-O {[%emt 0:00:06]} 14. Nce3 {[%emt 0:00:02]} Be6 {[%emt 0:00:23]} 15. Bd3 {[%emt 0:00:03][%cal Bf1d3,Bd3f5,Bf5e4][%mdl 32]} f5 {[%emt 0:00:09]} 16. O-O {[%emt 0:00:03]} Ne7 {[%emt 0:03:19]} ({Black should play} 16... Ra7 $14) 17. Nxe7+ $18 {[%emt 0:00:03]} Qxe7 {[%emt 0:00:02] [#]} 18. Bxf5 $1 {[%emt 0:00:07][%mdl 512]} Kh8 {[%emt 0:01:48]} (18... Rad8 19. Nd5) 19. Qh5 {[%emt 0:03:34] White is clearly better.} Bg8 {[%emt 0:00:18]} 20. a4 {[%emt 0:01:07]} Qf6 {[%emt 0:01:54]} (20... Rad8 $16 {was worth a try.}) 21. Be4 {[%emt 0:01:07]} Rab8 {[%emt 0:00:14]} 22. axb5 {[%emt 0:00:16]} Rxb5 {[%emt 0:00:41]} 23. b4 {[%emt 0:00:09]} (23. Rxa6 Rxb2 24. Nd5 Qe6) 23... d5 {[%emt 0:00:11]} 24. Bd3 {[%emt 0:00:14]} d4 {[%emt 0:01:54]} 25. Bxb5 {[%emt 0:01:03]} axb5 {[%emt 0:00:01]} 26. cxd4 {[%emt 0:00:45]} exd4 {[%emt 0:00:01][%cal Be5d4,Bd4d3,Bd3d2][%mdl 32]} 27. Ng4 {[%emt 0:00:06]} Qf4 {[%emt 0:00:09]} 28. h3 {[%emt 0:00:28]} d3 {[%emt 0:02:28]} 29. Qxb5 {[%emt 0:03:13] Black must now prevent Ra7.} d2 {[%emt 0:00:12] [#]} 30. Qd7 $2 {[%emt 0:01:38]} h5 {[%emt 0:00:11][%cal Og7a1]} 31. g3 {[%emt 0:01:17]} (31. Ra7 $2 Rf7 32. Nh2 Rxd7 33. Rxd7 Qxb4 $19 (33... Be6 $2 34. Rd8+ Kh7 35. Nf3 $19)) 31... Qf3 {[%emt 0:00:13] [#]} (31... Qf7 $14 32. Qxf7 (32. Qxd2 Bxa1 33. Rxa1 hxg4 $14) 32... Bxf7) 32. Nh2 $1 {[%emt 0:00:05]} Qc3 {[%emt 0:00:46]} (32... Qe2 33. Rad1 Bc3) 33. Rad1 $2 {[%emt 0:00:05]} (33. Ra5 $18 Bh7 34. Rxh5) 33... Bd4 $11 {[%emt 0:00:01] This pair of bishops is nice. The position is equal.} 34. Qd6 {[%emt 0:00:27]} Rf6 {[%emt 0:00:07]} 35. Qb8 {[%emt 0:00:13] Kg2 is the strong threat.} Kg7 {[%emt 0:00:50] Weighted Error Value: White=0.43/Black=0.60.  Missed win:     	White=1     	---        Mistake:       	White=1     	Black=3      OK:         	White=10    	Black=4      Best:        	---       	Black=1      Strong:       	White=1     	---} 1/2-1/2

[Event "Polish University-ch Teams 2024"]
[Site "Lublin"]
[Date "2024.02.25"]
[Round "6.4"]
[White "Chylewski, Patryk"]
[Black "Szczepanik, Tomasz"]
[Result "1-0"]
[ECO "C02"]
[WhiteElo "2285"]
[BlackElo "1720"]
[Annotator "TA"]
[PlyCount "41"]
[EventDate "2024.02.22"]
[EventType "team-tourn"]
[EventCountry "POL"]
[SourceTitle "playchess.com"]
[Source "ChessBase"]
[SourceQuality "1"]
[TimeControl "900+5"]

{[%evp 10,41,0,0,8,12,9,-30,38,39,57,68,74,58,68,0,14,8,0,-58,55,0,0,-6,127,124,120,113,108,87,300,251,1805,1749]} 1. e4 {[%emt 0:01:49]} e6 {[%emt 0:00:02]} 2. d4 {[%emt 0:00:03]} d5 {[%emt 0:00:02]} 3. e5 {[%emt 0:00:01]} c5 {[%emt 0:00:01]} 4. c3 {[%emt 0:00:01]} Nc6 {[%emt 0:00:02]} 5. Nf3 {[%emt 0:00:03]} Qb6 {[%emt 0:00:05]} 6. Na3 {[%emt 0:00:03]} Bd7 {[%emt 0:00:20]} 7. Nc2 {[%emt 0:00:02]} f6 {[%emt 0:01:02]} 8. exf6 {[%emt 0:00:19]} gxf6 {[%emt 0:00:50]} (8... Nxf6 $11 9. Be2 cxd4) 9. Be2 $14 {[%emt 0:00:14]} O-O-O {[%emt 0:00:59]} 10. O-O {[%emt 0:00:10]} cxd4 {[%emt 0:02:05]} 11. cxd4 {[%emt 0:00:49][%cal Ob2b4]} Bd6 {[%emt 0:00:51]} 12. Be3 {[%emt 0:00:23]} (12. b4 $14) 12... Nge7 $11 {[%emt 0:00:45][%cal Oh8g8,Bg8e7,Be7f5,Bf5e3][%mdl 32]} 13. a4 {[%emt 0:01:13][%cal Ob2b4]} Nf5 {[%emt 0:02:07]} 14. a5 {[%emt 0:00:35]} Qc7 {[%emt 0:02:10] [#]} (14... Qxb2 $2 {perishes.} 15. Qd3 $18) (14... Nxa5 $15 15. Bd2 Nb3) 15. b4 {[%emt 0:00:14]} Nxe3 $1 {[%emt 0:00:38]} 16. fxe3 {[%emt 0:00:02]} Nxb4 {[%emt 0:01:45]} (16... Kb8 $11 {remains equal.}) 17. Nxb4 $16 {[%emt 0:00:06]} Bxb4 {[%emt 0:00:03]} 18. a6 {[%emt 0:00:11][%cal Ba5a6,Ba6b7][%mdl 32] Threatens to win with Qb3.} Kb8 {[%emt 0:01:59]} 19. Qb3 {[%emt 0:00:15]} Be7 {[%emt 0:00:27]} (19... Qc3 $16 20. Rab1 Qxb3 21. Rxb3 Bd6) 20. axb7 {[%emt 0:00:01][%cal Oa1a7] Black must now prevent Rxa7!} e5 $2 {[%emt 0:00:15] [#]} (20... a5 21. Rfc1 a4 22. Rxc7 axb3) 21. Rxa7 $3 {[%emt 0:00:20][%mdl 512] Weighted Error Value: White=0.30/Black=0.54.  Loses game:     	---       	Black=1      Mistake:       	White=3     	Black=4      Inaccurate:     	White=1     	---        OK:         	White=4     	Black=4      Strong:       	---       	Black=1      Brilliant:      	White=1     	---} 1-0

[Event "Polish University-ch Teams 2024"]
[Site "Lublin"]
[Date "2024.02.25"]
[Round "6.5"]
[White "Jedrzejko, Martyna"]
[Black "Antolak, Julia"]
[Result "0-1"]
[ECO "B22"]
[WhiteElo "1711"]
[BlackElo "2309"]
[Annotator "TA"]
[PlyCount "58"]
[EventDate "2024.02.22"]
[EventType "team-tourn"]
[EventCountry "POL"]
[SourceTitle "playchess.com"]
[Source "ChessBase"]
[SourceQuality "1"]
[TimeControl "900+5"]

{[%evp 10,58,21,22,23,33,36,29,20,11,15,14,14,16,17,-17,-28,-18,29,24,109,99,127,-35,37,34,35,33,34,0,0,0,70,-208,-208,-189,-184,-210,-204,-216,-184,-190,-200,-197,-195,-267,-198,-204,-195,-432,-427]} 1. e4 {[%emt 0:00:03]} c5 {[%emt 0:01:03]} 2. c3 {[%emt 0:00:02]} d5 {[%emt 0:00:02]} 3. exd5 {[%emt 0:00:03]} Qxd5 {[%emt 0:00:01]} 4. d4 {[%emt 0:00:02]} Nc6 {[%emt 0:00:01]} 5. Nf3 {[%emt 0:00:06]} Bf5 {[%emt 0:00:05]} 6. Be3 {[%emt 0:01:09]} cxd4 {[%emt 0:00:21]} 7. Nxd4 {[%emt 0:00:12]} Nf6 {[%emt 0:00:03]} 8. Nxf5 {[%emt 0:01:37]} (8. Na3 {vereinfacht} Nxd4 9. Qxd4 Qxd4 10. Bxd4 e5 11. Bb5+) 8... Qxf5 {[%emt 0:00:01] Weiß hat minimalen Vorteil.} 9. Qb3 {[%emt 0:01:01]} O-O-O {[%emt 0:02:18]} 10. Nd2 {[%emt 0:01:49][%cal Of1b5]} (10. Qxf7 $2 Rd5 $19) 10... Ng4 {[%emt 0:02:10]} 11. Be2 {[%emt 0:04:57][%cal Oe3a7]} e6 {[%emt 0:01:33]} 12. Bf3 {[%emt 0:01:02]} Nxe3 {[%emt 0:02:04]} 13. fxe3 {[%emt 0:00:03] Weiss hat schwache schwarze Felder} Bc5 {[%emt 0:00:02]} (13... Na5 $142 14. Qd1 (14. Qa4 Bc5 $15) 14... Bc5) 14. Nc4 $1 $11 {[%emt 0:01:24] [#] Droht stark 0-0.} Rd7 {[%emt 0:01:18]} (14... Qg5 $1 $11 {bleibt in der Remisbreite.}) 15. O-O $36 {[%emt 0:00:13][%mdl 2048] Bxc6 ist eine echte Drohung. Weiss bestimmt, wo es lang geht.} Qg5 {[%emt 0:00:03][%cal Oc6a5]} 16. Rfe1 $2 {[%emt 0:00:46]} (16. Bxc6 $16 bxc6 17. Kh1) 16... Rhd8 {[%emt 0:00:32]} (16... Ne5 $15 17. Nxe5 Qxe5 (17... Bxe3+ $2 18. Kh1 $18)) 17. Bxc6 $14 {[%emt 0:00:16]} bxc6 {[%emt 0:00:01]} 18. Qa4 {[%emt 0:00:02]} Rc7 {[%emt 0:01:06]} 19. b4 {[%emt 0:00:04]} (19. Rad1 {scheint wilder zu sein.} Be7 20. Rxd8+ Kxd8 21. Rd1+) 19... Be7 {[%emt 0:00:41]} 20. Qa6+ {[%emt 0:00:04]} Kb8 {[%emt 0:00:05]} (20... Kd7 $11) 21. Rab1 $2 {[%emt 0:01:14][%mdl 8192] Davon erholt Weiß sich nicht mehr.} (21. a4 $1 $14 {nötig, um obenauf zu bleiben.}) 21... Qb5 $19 {[%emt 0:00:11]} 22. Qxb5+ {[%emt 0:00:25]} cxb5 {[%emt 0:00:01]} 23. Ne5 {[%emt 0:00:07]} f6 {[%emt 0:00:06]} (23... Rxc3 24. Rbc1 Bxb4 25. Rxc3 Bxc3 26. Nc6+ Kc7 27. Nxd8 Bxe1 28. Nxf7 $19) (23... Bf6 24. Nf3 $19) 24. Nf3 {[%emt 0:00:08]} Rxc3 {[%emt 0:00:21]} 25. Nd4 {[%emt 0:00:06] [#]} e5 $1 {[%emt 0:00:03]} 26. Nxb5 {[%emt 0:00:03]} Rc2 {[%emt 0:00:02][%cal Od8d2] Weiss muss nun ...Rdd2! beachten.} 27. Rbc1 {[%emt 0:00:08]} (27. Rec1 {war nötig.} Rdd2 (27... Rxa2 28. Rc7 $17) 28. Rxc2 Rxc2 29. Rd1 Rxa2 (29... Bxb4 30. Rb1 $16) 30. Rd7 Bxb4 31. h4) 27... Rdd2 {[%emt 0:00:20]} ({Keinesfalls} 27... Bxb4 28. Rxc2 Bxe1 29. Kf1 $17) 28. Rxc2 {[%emt 0:00:05]} Rxc2 {[%emt 0:00:01]} 29. a3 $2 {[%emt 0:00:03]} (29. Rd1 {war einen Versuch wert.}) 29... a6 {[%emt 0:00:01] Gewichteter Fehlerwert: Weiß=0.46/Schwarz=0.20 (präzise) .  Verlustzug:     	Weiß=1     	---        Fehler:       	Weiß=3     	Schwarz=4     Ungenau:       	Weiß=2     	---        OK:         	Weiß=9     	Schwarz=8     Bester:       	Weiß=2     	Schwarz=3     Stark:        	Weiß=1     	---} 0-1

[Event "Polish University-ch Teams 2024"]
[Site "Lublin"]
[Date "2024.02.25"]
[Round "6.6"]
[White "Kubicka, Anna"]
[Black "Zarebska, Lena"]
[Result "1-0"]
[ECO "C66"]
[WhiteElo "2278"]
[BlackElo "1871"]
[Annotator "TA"]
[PlyCount "61"]
[EventDate "2024.02.22"]
[EventType "team-tourn"]
[EventCountry "POL"]
[SourceTitle "playchess.com"]
[Source "ChessBase"]
[SourceQuality "1"]
[TimeControl "900+5"]

{[%evp 18,61,57,54,95,52,80,65,118,112,137,126,168,166,192,163,258,240,380,380,480,262,246,253,362,277,1011,1010,968,546,29980,2904,29991,29992,29993,29990,29990,29984,29995,29993,29997,29998,29998,29999,29999,29999]} 1. e4 {[%emt 0:01:10]} e5 {[%emt 0:00:02]} 2. Nf3 {[%emt 0:00:02]} Nc6 {[%emt 0:00:01]} 3. Nc3 {[%emt 0:00:22]} Nf6 {[%emt 0:00:08]} 4. Bb5 {[%emt 0:00:01]} d6 {[%emt 0:01:29]} 5. d4 {[%emt 0:00:25]} exd4 {[%emt 0:00:12]} 6. Nxd4 {[%emt 0:00:05]} Bd7 {[%emt 0:00:02]} 7. O-O {[%emt 0:00:22]} Be7 {[%emt 0:00:14]} 8. Nxc6 {[%emt 0:01:09]} bxc6 {[%emt 0:00:57]} 9. Bd3 {[%emt 0:00:03]} O-O {[%emt 0:00:03]} 10. f4 {[%emt 0:00:52]} Qb8 {[%emt 0:01:14]} 11. Kh1 {[%emt 0:00:12]} Qb6 {[%emt 0:00:02]} 12. Rb1 {[%emt 0:00:24]} Ng4 {[%emt 0:01:30]} ({Vorzuziehen ist} 12... Qc5 $14) 13. Qf3 $16 {[%emt 0:00:14]} Bh4 {[%emt 0:02:04]} 14. g3 {[%emt 0:00:04]} Be7 {[%emt 0:00:01]} 15. h3 {[%emt 0:00:07]} Nf6 {[%emt 0:00:49]} 16. Be3 {[%emt 0:00:05]} Qa5 {[%emt 0:00:01] [#]} (16... c5 {kämpft weiter.} 17. g4 Bc6) 17. g4 $1 $18 {[%emt 0:00:16] b4 wäre nun fies.} d5 {[%emt 0:03:22]} (17... Rab8 $142 18. g5 Ne8) 18. e5 {[%emt 0:00:50]} Ne4 {[%emt 0:00:01]} 19. Nxe4 {[%emt 0:01:18]} (19. b4 $142 Qa3 20. Nxe4 (20. Rb3 Qxb3 21. axb3 Nxc3 $18) 20... dxe4 21. Qxe4) 19... dxe4 {[%emt 0:00:02]} 20. Qxe4 {[%emt 0:00:51][%csl Gd3][%cal Re4h7]} g6 {[%emt 0:01:45]} (20... Qd5 $142 21. Rbd1 (21. f5 Rfb8 $18) 21... Rfd8) 21. f5 {[%emt 0:01:03]} Rfe8 $2 {[%emt 0:00:31]} (21... Qd5 22. Rbd1 Bh4) 22. fxg6 {[%emt 0:00:08]} hxg6 {[%emt 0:00:02]} 23. Rxf7 {[%emt 0:00:43]} Bf5 {[%emt 0:00:29]} 24. gxf5 {[%emt 0:00:54] [#] Weiss droht Bc4 und Matt.} Kxf7 {[%emt 0:00:02][%cal Bg8f7,Bf7g7,Bg7f6,Bf6g5,Bg5h5,Bh5h4][%mdl 32] Schwarz ist schwach auf den weissen Feldern} 25. Bc4+ {[%emt 0:00:30] Ein starkes Läuferpaar. Weiß setzt Matt.} Kg7 {[%emt 0:00:06]} 26. f6+ {[%emt 0:00:16]} Bxf6 {[%emt 0:00:29]} 27. exf6+ {[%emt 0:00:17]} Kxf6 {[%emt 0:00:02]} 28. Bd4+ {[%emt 0:00:30]} Kg5 {[%emt 0:00:04]} 29. Rg1+ {[%emt 0:00:04]} Kh5 {[%emt 0:00:03]} 30. Qxg6+ {[%emt 0:00:06]} Kh4 {[%emt 0:00:02]} 31. Bf2+ {[%emt 0:00:04] Schwarz wurde aus der Eröffnung heraus überspielt.   Gewichteter Fehlerwert: Weiß=0.36/Schwarz=0.95.  Fehler:       	Weiß=1     	Schwarz=5     Ungenau:       	Weiß=1     	Schwarz=3     OK:         	Weiß=3     	Schwarz=1     Bester:       	Weiß=1     	---        Stark:        	Weiß=1     	---} 1-0

[Event "Polish University-ch Teams 2024"]
[Site "Lublin"]
[Date "2024.02.25"]
[Round "6.7"]
[White "Baum, Jonasz"]
[Black "Wikar, Martyna"]
[Result "1-0"]
[ECO "E11"]
[WhiteElo "2400"]
[BlackElo "2214"]
[Annotator "TA"]
[PlyCount "79"]
[EventDate "2024.02.22"]
[EventType "team-tourn"]
[EventCountry "POL"]
[SourceTitle "playchess.com"]
[Source "ChessBase"]
[SourceQuality "1"]
[TimeControl "900+5"]

{[%evp 12,79,30,19,70,57,62,46,108,100,111,107,95,100,202,146,198,163,170,143,146,132,145,122,153,129,133,106,106,106,134,121,190,108,154,152,158,156,153,141,200,190,271,268,260,181,323,337,343,314,631,577,563,559,987,633,614,612,910,820,804,479,956,575,1197,1181,29991,29992,29992,29993]} 1. d4 {[%emt 0:00:02]} Nf6 {[%emt 0:01:55]} 2. c4 {[%emt 0:00:01]} e6 {[%emt 0:00:04]} 3. Nf3 {[%emt 0:00:03]} Bb4+ {[%emt 0:00:16]} 4. Nbd2 {[%emt 0:00:02]} O-O {[%emt 0:00:10]} 5. a3 {[%emt 0:00:02]} Bxd2+ {[%emt 0:00:29]} 6. Bxd2 {[%emt 0:00:03]} Ne4 {[%emt 0:00:12]} 7. Bf4 {[%emt 0:00:07]} d5 {[%emt 0:00:22]} (7... b6 $11) 8. e3 {[%emt 0:00:17]} Nd7 {[%emt 0:00:49]} 9. Rc1 {[%emt 0:01:18]} Ndf6 {[%emt 0:00:35]} ({Black should play} 9... c5 $14) 10. Bd3 $16 {[%emt 0:00:25]} c6 {[%emt 0:01:40]} 11. O-O {[%emt 0:01:03]} (11. Qc2 {looks sharper.} Qa5+ 12. Ke2 Nh5 13. Bg3) 11... dxc4 {[%emt 0:01:00]} 12. Rxc4 {[%emt 0:00:16]} Re8 {[%emt 0:00:59]} (12... Nd6 $16) 13. h3 {[%emt 0:00:13]} Qd5 {[%emt 0:01:04]} (13... Nd6 $16) 14. Ne5 {[%emt 0:01:21] [#] f3 is the strong threat.} Qd8 {[%emt 0:01:01]} 15. Qc2 {[%emt 0:01:11]} Nd6 {[%emt 0:00:29]} 16. Rc5 {[%emt 0:00:29]} h6 {[%emt 0:00:10]} 17. Rc1 {[%emt 0:00:29] White has more active pieces.} Qe7 {[%emt 0:01:53]} 18. Bh2 {[%emt 0:00:34]} Nd7 {[%emt 0:00:17]} 19. Nxd7 {[%emt 0:01:18]} Bxd7 {[%emt 0:00:01] Black is weak on the dark squares} 20. Qb3 {[%emt 0:00:06]} b6 {[%emt 0:00:29]} 21. R5c3 {[%emt 0:00:49]} Rac8 {[%emt 0:00:58]} (21... Red8 $16 {is a better defense.} 22. a4 Nb7) 22. Bb1 {[%emt 0:00:15] A strong pair of Bishops.} (22. Qb4 $18 Nf5 23. Ba6) 22... Nb7 {[%emt 0:00:24]} (22... Nb5 $142) 23. Qa4 {[%emt 0:00:31]} a5 {[%emt 0:00:28]} 24. Qc2 {[%emt 0:00:07]} g6 {[%emt 0:00:03]} 25. Qe4 {[%emt 0:00:19]} Red8 {[%emt 0:00:40]} (25... b5 $16 26. Be5 b4) 26. Be5 $40 {[%emt 0:00:21][%mdl 128] White has strong attack.} Be8 {[%emt 0:00:38]} (26... Rf8 {was necessary.} 27. h4 Be8) 27. Qf4 {[%emt 0:00:11]} Qg5 {[%emt 0:00:01]} 28. Qh2 {[%emt 0:01:01] Black must now prevent h4.} c5 {[%emt 0:00:08]} (28... Qe7 $142 29. Qf4 Qg5) 29. h4 {[%emt 0:00:33]} Qe7 {[%emt 0:00:04]} 30. Qf4 {[%emt 0:00:02] Wards off f6} f5 $2 {[%emt 0:00:05]} (30... Rd5 31. Rb3 (31. Qxh6 f6 $18) 31... b5) 31. Qxh6 {[%emt 0:00:04]} Qh7 {[%emt 0:00:03]} 32. Qg5 {[%emt 0:00:12]} Bc6 {[%emt 0:00:02]} 33. b4 {[%emt 0:00:26]} axb4 {[%emt 0:00:11]} 34. axb4 {[%emt 0:00:01]} Bd5 {[%emt 0:00:05]} 35. bxc5 {[%emt 0:00:04]} bxc5 {[%emt 0:00:02]} 36. dxc5 {[%emt 0:00:01]} Rc6 {[%emt 0:00:09]} (36... Rf8 $142 37. e4 fxe4) 37. Bd3 {[%emt 0:00:14]} Rdc8 {[%emt 0:00:02]} 38. Bb5 {[%emt 0:00:07]} Rxc5 {[%emt 0:00:06]} 39. Rxc5 {[%emt 0:00:01]} Nxc5 {[%emt 0:00:08] [#]} 40. Rxc5 $1 {[%emt 0:00:06][%mdl 512] Weighted Error Value: White=0.61/Black=0.69.  Mistake:       	White=1     	Black=9      Inaccurate:     	White=2     	Black=3      OK:         	White=12    	Black=7      Best:        	---       	Black=1} 1-0